fUSD/lending_fUSD_20260111
["ID","MTS","AMOUNT","RATE_DAILY","PERIOD"]
[401291387,1768108277397,-304.91306557,0.00038968,2]
[401291388,1768108277407,-300.0,0.00038968,2]
[401291389,1768108277417,-455.36038354,0.00038968,2]
[401291390,1768108277428,-300.0,0.00038968,2]
[401291391,1768108277440,-1073.97689594,0.00038968,2]
[401291392,1768108277449,-300.0,0.00038968,2]
[401291393,1768108277459,-368.62343555,0.00038968,2]
[401291394,1768108277468,-300.0,0.00038968,2]
[401291395,1768108277478,-300.0,0.00038968,2]
[401291396,1768108277487,-300.27730616,0.00038968,2]
[401291397,1768108277496,-304.01967737,0.00038968,2]
[401291398,1768108277506,-579.20730561,0.00038968,2]
[401291399,1768108277515,-1553.67582506,0.00038968,2]
[401291400,1768108277525,-305.1949131,0.00038968,2]
[401291401,1768108277535,-300.27731528,0.00038968,2]
[401291402,1768108277544,-455.78123159,0.00038968,2]
[401291403,1768108277554,-300.2773336,0.00038968,2]
[401291404,1768108277563,-1074.85568883,0.00038968,2]
[401291405,1768108277573,-300.2773244,0.00038968,2]
[401291406,1768108277582,-368.96413179,0.00038968,2]
[401291407,1768108277592,-300.27734272,0.00038968,2]
[401291408,1768108277601,-333.26415946,0.00038968,2]
[401291409,1768108277610,-300.0,0.00038968,2]
[401291410,1768108277619,-303.73891517,0.00038968,2]
[401291411,1768108277628,-578.67252667,0.00038968,2]
[401291412,1768108277637,-1553.67582506,0.00038968,2]
[401291413,1768108277646,-304.91306556,0.00038968,2]
[401291414,1768108277657,-300.0,0.00038968,2]
[401291415,1768108277667,-455.36038354,0.00038968,2]
[401291416,1768108277676,-318.61774298,0.00038968,2]
[401291417,1768108277688,-1073.97689594,0.00038968,2]
[401291418,1768108277697,-590.33005796,0.00038968,2]
[401291419,1768108277706,-368.62343555,0.00038968,2]
[401291420,1768108277716,-300.0,0.00038968,2]
[401291421,1768108277726,-300.0,0.00038968,2]
[401291422,1768108277735,-303.73891515,0.00038968,2]
[401291423,1768108277745,-578.67252667,0.00038968,2]
[401291424,1768108277755,-1553.67582506,0.00038968,2]
[401291425,1768108277764,-304.91306557,0.00038968,2]
[401291426,1768108277774,-300.0,0.00038968,2]
[401291427,1768108277784,-455.36038354,0.00038968,2]
[401291428,1768108277794,-1073.97689592,0.00038968,2]
[401291429,1768108277803,-368.62343555,0.00038968,2]
[401291430,1768108277813,-407.86614534,0.00038968,2]
[401291431,1768108277824,-300.0,0.00038968,2]
[401291432,1768108277835,-303.73891517,0.00038968,2]
[401291433,1768108277847,-578.67252668,0.00038968,2]
[401291434,1768108277857,-1553.67582506,0.00038968,2]
[401291435,1768108277867,-304.91306557,0.00038968,2]
[401291436,1768108277877,-300.0,0.00038968,2]
[401291437,1768108277887,-455.36038354,0.00038968,2]
[401291438,1768108277896,-1073.97689594,0.00038968,2]
[401291439,1768108277906,-368.62343555,0.00038968,2]
[401291440,1768108277915,-300.0,0.00038968,2]
[401291441,1768108277925,-303.73891515,0.00038968,2]
[401291442,1768108277935,-578.67252668,0.00038968,2]
[401291443,1768108277945,-1553.67582506,0.00038968,2]
[401291444,1768108277954,-304.91306557,0.00038968,2]
[401291445,1768108277963,-300.0,0.00038968,2]
[401291446,1768108277973,-455.36038354,0.00038968,2]
[401291447,1768108277983,-1073.97689592,0.00038968,2]
[401291448,1768108277992,-368.62343555,0.00038968,2]
[401291449,1768108278001,-305.85899575,0.00038968,2]
[401291450,1768108278011,-300.0,0.00038968,2]
[401291451,1768108278020,-303.73891517,0.00038968,2]
[401291452,1768108278029,-578.67252668,0.00038968,2]
[401291453,1768108278038,-1576.85591807,0.00038968,2]
[401291454,1768108278047,-304.91306557,0.00038968,2]
[401291455,1768108278056,-500.20951367,0.00038968,2]
[401291456,1768108278067,-455.36038354,0.00038968,2]
[401291457,1768108278076,-1073.97689594,0.00038968,2]
[401291458,1768108278085,-368.62343555,0.00038968,2]
[401291459,1768108278095,-303.73891515,0.00038968,2]
[401291460,1768108278104,-300.0,0.00038968,2]
[401291461,1768108278113,-578.67252668,0.00038968,2]
[401291462,1768108278122,-304.91306557,0.00038968,2]
[401291463,1768108278131,-455.36038354,0.00038968,2]
[401291464,1768108278140,-1073.97689592,0.00038968,2]
[401291465,1768108278149,-368.62343555,0.00038968,2]
[401291466,1768108278158,-300.0,0.00038968,2]
[401291467,1768108278167,-303.73891517,0.00038968,2]
[401291468,1768108278178,-578.67252668,0.00038968,2]
[401291469,1768108278187,-304.91306557,0.00038968,2]
[401291470,1768108278196,-455.36038354,0.00038968,2]
[401291471,1768108278206,-1073.97689594,0.00038968,2]
[401291472,1768108278219,-368.62343555,0.00038968,2]
[401291473,1768108278228,-300.0,0.00038968,2]
[401291474,1768108278238,-549.53413542,0.00038968,2]
[401291475,1768108278247,-303.82953583,0.00038968,2]
[401291476,1768108278258,-579.8074335,0.00038968,2]
[401291477,1768108278267,-305.47027736,0.00038968,2]
[401291478,1768108278276,-456.25342688,0.00038968,2]
[401291479,1768108278285,-1075.85832908,0.00038968,2]
[401291480,1768108278295,-369.34640371,0.00038968,2]
[401291481,1768108278304,-300.27730573,0.00038968,2]
[401291482,1768108278313,-304.20336981,0.00038968,2]
[401291483,1768108278322,-578.67252668,0.00038968,2]
[401291484,1768108278331,-304.91306556,0.00038968,2]
[401291485,1768108278342,-455.36038354,0.00038968,2]
[401291486,1768108278351,-1073.97689594,0.00038968,2]
[401291487,1768108278360,-368.62343555,0.00038968,2]
[401291488,1768108278370,-300.27730613,0.00038968,2]
[401291489,1768108278379,-300.0,0.00038968,2]
[401291490,1768108278388,-303.82111296,0.00038968,2]
[401291491,1768108278397,-300.27730614,0.00038968,2]
[401291492,1768108278409,-578.70657387,0.00038968,2]
[401291493,1768108278420,-300.27730614,0.00038968,2]
[401291494,1768108278431,-300.27730612,0.00038968,2]
[401291495,1768108278442,-300.27730613,0.00038968,2]
[401291496,1768108278452,-300.27730615,0.00038968,2]
[401291497,1768108278461,-300.27730613,0.00038968,2]
[401291498,1768108278470,-304.99557938,0.00038968,2]
[401291499,1768108278480,-300.27800651,0.00038968,2]
[401291500,1768108278488,-300.0,0.00038968,2]
[401291501,1768108278497,-300.27732443,0.00038968,2]
[401291502,1768108278507,-455.38717483,0.00038968,2]
[401291503,1768108278518,-300.0,0.00038968,2]
[401291504,1768108278529,-300.2773336,0.00038968,2]
[401291505,1768108278540,-1074.03333892,0.00038968,2]
[401291506,1768108278550,-300.15385526,0.00038968,2]
[401291507,1768108278559,-300.0,0.00038968,2]
[401291508,1768108278569,-300.23109913,0.00038968,2]
[401291509,1768108278578,-368.64512458,0.00038968,2]
[401291510,1768108278587,-300.0,0.00038968,2]
[401291511,1768108278596,-300.0,0.00038968,2]
[401291512,1768108278605,-300.0,0.00038968,2]
[401291513,1768108278615,-300.00000001,0.00038968,2]
[401291514,1768108278625,-300.0,0.00038968,2]
[401291515,1768108278634,-300.0,0.00038968,2]
[401291516,1768108278643,-303.82111298,0.00038968,2]
[401291517,1768108278653,-300.0,0.00038968,2]
[401291518,1768108278662,-578.70657387,0.00038968,2]
[401291519,1768108278671,-300.0,0.00038968,2]
[401291520,1768108278680,-300.0,0.00038968,2]
[401291521,1768108278690,-300.0,0.00038968,2]
[401291522,1768108278700,-300.0,0.00038968,2]
[401291523,1768108278709,-300.0,0.00038968,2]
[401291524,1768108278718,-304.99557938,0.00038968,2]
[401291525,1768108278727,-300.00000001,0.00038968,2]
[401291526,1768108278740,-300.0,0.00038968,2]
[401291527,1768108278748,-300.0,0.00038968,2]
[401291528,1768108278758,-455.38717485,0.00038968,2]
[401291529,1768108278768,-300.0,0.00038968,2]
[401291530,1768108278779,-300.0,0.00038968,2]
[401291531,1768108278788,-1074.03333892,0.00038968,2]
[401291532,1768108278797,-300.0,0.00038968,2]
[401291533,1768108278806,-300.0,0.00038968,2]
[401291534,1768108278816,-300.0,0.00038968,2]
[401291535,1768108278825,-368.64512459,0.00038968,2]
[401291536,1768108278835,-300.0,0.00038968,2]
[401291537,1768108278844,-300.0,0.00038968,2]
[401291538,1768108278855,-300.0,0.00038968,2]
[401291539,1768108278865,-300.0,0.00038968,2]
[401291540,1768108278876,-300.0,0.00038968,2]
[401291541,1768108278886,-300.0,0.00038968,2]
[401291542,1768108278895,-300.0,0.00038968,2]
[401291543,1768108278904,-303.82111296,0.00038968,2]
[401291544,1768108278914,-300.0,0.00038968,2]
[401291545,1768108278923,-578.70657388,0.00038968,2]
[401291546,1768108278933,-300.0,0.00038968,2]
[401291547,1768108278944,-1553.04,0.00038968,2]
[401291548,1768108278954,-300.0,0.00038968,2]
[401291549,1768108278964,-300.0,0.00038968,2]
[401291550,1768108278973,-300.0,0.00038968,2]
[401291551,1768108278984,-300.0,0.00038968,2]
[401291552,1768108278993,-304.99557938,0.00038968,2]
[401291553,1768108279003,-300.0,0.00038968,2]
[401291554,1768108279012,-300.0,0.00038968,2]
[401291555,1768108279022,-300.0,0.00038968,2]
[401291556,1768108279031,-455.38717483,0.00038968,2]
[401291557,1768108279040,-300.0,0.00038968,2]
[401291558,1768108279208,-300.0,0.00038968,2]
[401291559,1768108279219,-1074.03333892,0.00038968,2]
[401291560,1768108279230,-399.43955282,0.00038968,2]
[401291561,1768108279240,-300.0,0.00038968,2]
[401291562,1768108279249,-300.0,0.00038968,2]
[401291563,1768108279259,-368.64512459,0.00038968,2]
[401291564,1768108279268,-300.0,0.00038968,2]
[401291565,1768108279277,-300.0,0.00038968,2]
[401291566,1768108279286,-300.0,0.00038968,2]
[401291567,1768108279296,-300.0,0.00038968,2]
[401291568,1768108279306,-300.0,0.00038968,2]
[401291569,1768108279317,-300.0,0.00038968,2]
[401291570,1768108279328,-300.0,0.00038968,2]
[401291571,1768108279338,-303.82111298,0.00038968,2]
[401291572,1768108279347,-300.0,0.00038968,2]
[401291573,1768108279357,-578.70657388,0.00038968,2]
[401291574,1768108279368,-300.0,0.00038968,2]
[401291575,1768108279378,-300.0,0.00038968,2]
[401291576,1768108279387,-300.0,0.00038968,2]
[401291577,1768108279397,-300.0,0.00038968,2]
[401291578,1768108279406,-300.0,0.00038968,2]
[401291579,1768108279416,-304.99557938,0.00038968,2]
[401291580,1768108279425,-300.0,0.00038968,2]
[401291581,1768108279434,-1355.9,0.00038992,5]
[401291582,1768108279444,-7140.76036412,0.00039,10]
[401291583,1768108279453,-1714.12969885,0.00039,2]
[401291584,1768108279463,-4000.0,0.00039,5]
[401291585,1768108279472,-30647.86209812,0.00039,2]
[401291586,1768108279481,-516.79318155,0.00039,10]
[401291587,1768108279491,-27712.70281006,0.00039,10]
[401291588,1768108279500,-3746.04,0.00039,14]
[401291589,1768108279509,-5105.17,0.00039,14]
[401291590,1768108279519,-26055.94,0.00039,3]
[401291591,1768108279529,-199.34533746,0.00039,120]
[401291592,1768108279539,-150.0,0.00039,120]
[401291593,1768108279548,-16000.0,0.00039,5]
[401291594,1768108279557,-420.5781977,0.00039,120]
[401291595,1768108279567,-508.0,0.00039,17]
[401291596,1768108279576,-1019.0,0.00039,7]
[401291597,1768108279586,-4417.27420399,0.00039018,2]
[401291598,1768108279596,-61229.8381807,0.00039025,2]
[401291599,1768108279605,-6446.1,0.00039037,2]
[401291600,1768108279614,-1168.94,0.000391,14]
[401291601,1768108279623,-1000.0,0.00039112,2]
[401291602,1768108279633,-1037.987,0.00039113,14]
[401291603,1768108279642,-982.873,0.00039114,14]
[401291604,1768108279652,-500.0,0.00039169,5]
[401291605,1768108279661,-1000.0,0.00039178,14]
[401291606,1768108279671,-1003.603,0.00039211,14]
[401291607,1768108279680,-2000.0,0.00039363,120]
[401291608,1768108279689,-474.94,0.00039384,120]
[401291609,1768108279699,-2059.79080093,0.00039452,5]
[401291610,1768108279708,-381.75687553,0.00039452,5]
[401291611,1768108279718,-1000.0,0.00039452,14]
[401291612,1768108279727,-1017.127,0.00039479,14]
[401291613,1768108279739,-10000.0,0.000395,14]
[401291614,1768108279748,-1056.4066766,0.000395,2]
[401291615,1768108279758,-152.0,0.0003954,36]
[401291616,1768108279768,-191.84382445,0.0003954,5]
[401291617,1768108279778,-508.0,0.00039562,17]
[401291618,1768108279788,-15000.0,0.000396,14]
[401291619,1768108279797,-300.0,0.00039606,2]
[401291620,1768108279807,-736.29637837,0.0003971,2]
[401291621,1768108279817,-1009.10863444,0.00039726,5]
[401291622,1768108279827,-1000.0,0.00039726,14]
[401291623,1768108279837,-10000.0,0.000398,14]
[401291624,1768108279846,-10000.0,0.000398,14]
[401291625,1768108279856,-1000.0,0.00039811,14]
[401291626,1768108279866,-3000.0,0.0003985,14]
[401291627,1768108279876,-1355.9,0.00039867,6]
[401291628,1768108279886,-252.0,0.00039871,90]
[401291629,1768108279896,-333.0,0.00039871,90]
[401291630,1768108279905,-168.0,0.00039871,90]
[401291631,1768108279915,-201.81607195,0.000399,30]
[401291632,1768108279924,-80635.7306768,0.0003998,2]
[401291633,1768108279935,-472.20549692,0.00039999,31]
[401291634,1768108279945,-431.48057894,0.00039999,31]
[401291635,1768108279955,-500.0,0.00039999,31]
[401291636,1768108279965,-452.66892453,0.00039999,7]
[401291637,1768108279974,-407.7027385,0.00039999,15]
[401291638,1768108279983,-500.0,0.00039999,31]
[401291639,1768108279993,-500.0,0.00039999,31]
[401291640,1768108280003,-500.0,0.00039999,31]
[401291641,1768108280013,-402.11103809,0.00039999,31]
[401291642,1768108280023,-500.0,0.00039999,31]
[401291643,1768108280032,-500.0,0.00039999,31]
[401291644,1768108280042,-500.0,0.00039999,31]
[401291645,1768108280051,-500.0,0.00039999,31]
[401291646,1768108280060,-328.60578591,0.00039999,31]
[401291647,1768108280070,-500.0,0.00039999,31]
[401291648,1768108280079,-500.0,0.00039999,31]
[401291649,1768108280088,-500.0,0.00039999,31]
[401291650,1768108280097,-184.69643902,0.00039999,31]
[401291651,1768108280106,-500.0,0.00039999,31]
[401291652,1768108280115,-500.0,0.00039999,31]
[401291653,1768108280125,-500.0,0.00039999,31]
[401291654,1768108280134,-500.0,0.00039999,31]
[401291655,1768108280143,-500.0,0.00039999,31]
[401291656,1768108280152,-500.0,0.00039999,31]
[401291657,1768108280161,-500.0,0.00039999,31]
[401291658,1768108280171,-407.68271896,0.00039999,31]
[401291659,1768108280180,-500.0,0.00039999,31]
[401291660,1768108280189,-500.0,0.00039999,31]
[401291661,1768108280198,-500.0,0.00039999,31]
[401291662,1768108280207,-532.87895123,0.00039999,31]
[401291663,1768108280215,-500.0,0.00039999,31]
[401291664,1768108280225,-500.0,0.00039999,31]
[401291665,1768108280234,-500.0,0.00039999,31]
[401291666,1768108280244,-500.0,0.00039999,31]
[401291667,1768108280253,-500.0,0.00039999,31]
[401291668,1768108280262,-500.0,0.00039999,31]
[401291669,1768108280274,-247.27489466,0.00039999,31]
[401291670,1768108280296,-500.0,0.00039999,31]
[401291671,1768108280312,-206.494912,0.00039999,31]
[401291672,1768108280332,-453.86050804,0.00039999,15]
[401291673,1768108280351,-500.0,0.00039999,31]
[401291674,1768108280367,-510.06678251,0.0004,5]
[401291675,1768108280384,-423.10074036,0.0004,7]
[401291676,1768108280405,-5000.0,0.0004,3]
[401291677,1768108280423,-981.9889946,0.0004,7]
[401291678,1768108280441,-388.30939527,0.0004,2]
[401291679,1768108280459,-1551.82525624,0.0004,2]
[401291680,1768108280478,-217.62931688,0.0004,2]
[401291681,1768108280493,-313.14990769,0.0004,2]
[401291682,1768108280511,-160.86963208,0.0004,2]
[401291683,1768108280526,-10629.04506001,0.0004,2]
[401291684,1768108280542,-1019.77055444,0.0004,20]
[401291685,1768108280556,-919.53,0.0004,12]
[401291686,1768108280571,-3000.0,0.0004,7]
[401291687,1768108280586,-1000.0,0.0004,15]
[401291688,1768108280602,-1000.0,0.0004,2]
[401291689,1768108280617,-1340.178373,0.0004,24]
[401291690,1768108280632,-3000.0,0.0004,5]
[401291691,1768108280648,-200.03749026,0.0004,2]
[401291692,1768108280665,-10724.0,0.0004,2]
[401291693,1768108280681,-5000.0,0.0004,14]
[401291694,1768108280696,-100000.0,0.0004,2]
[401291695,1768108280711,-1029.27,0.0004,2]
[401291696,1768108280727,-5019.45698712,0.0004,13]
[401291697,1768108280745,-5619.77649192,0.0004,10]
[401291698,1768108280760,-221.43383241,0.0004,2]
[401291699,1768108280777,-5016.75324168,0.0004,12]
[401291700,1768108280793,-250.0,0.0004,7]
[401291701,1768108280809,-254983.46626768,0.0004,2]
[401291702,1768108280824,-151.0,0.0004,120]
[401291703,1768108280840,-151.0,0.0004,120]
[401291704,1768108280856,-386.33058669,0.0004,120]
[401291705,1768108280871,-204.63099015,0.0004,120]
[401291706,1768108280886,-177.5226374,0.0004,60]
[401291707,1768108280901,-158.51509355,0.0004,120]
[401291708,1768108280916,-278.78241031,0.0004,120]
[401291709,1768108280931,-239.19738022,0.0004,120]
[401291710,1768108280947,-155370.2712032,0.0004,30]
[401291711,1768108280963,-222.60850822,0.0004,30]
[401291712,1768108280979,-202.32356677,0.0004,120]
[401291713,1768108280994,-4995.67674744,0.0004,30]
[401291714,1768108281009,-14865.79756438,0.0004,30]
[401291715,1768108281024,-500.0,0.0004,120]
[401291716,1768108281040,-200.0,0.0004,120]
[401291717,1768108281054,-431.0,0.0004,120]
[401291718,1768108281068,-477.12749073,0.0004,30]
[401291719,1768108281082,-12247.93030615,0.0004,30]
[401291720,1768108281097,-926.66488079,0.0004,30]
[401291721,1768108281112,-2804.63519955,0.0004,30]
[401291722,1768108281127,-209.35418214,0.0004,30]
[401291723,1768108281142,-39032.61208134,0.0004,30]
[401291724,1768108281156,-5387.72232893,0.0004,30]
[401291725,1768108281171,-520.0,0.0004,30]
[401291726,1768108281185,-4735.0787914,0.0004,30]
[401291727,1768108281201,-535.32188696,0.0004,2]
[401291728,1768108281220,-200.0,0.0004,120]
[401291729,1768108281235,-6992.0,0.0004,5]
[401291730,1768108281251,-5016.45632178,0.0004,11]
[401291731,1768108281266,-565.13179205,0.0004,120]
[401291732,1768108281281,-158.44665919,0.0004,120]
[401291733,1768108281296,-378.37,0.0004,60]
[401291734,1768108281310,-378.37,0.0004,60]
[401291735,1768108281327,-30661.89386578,0.0004,30]
[401291736,1768108281343,-2000.0,0.0004,2]
[401291737,1768108281357,-345.17,0.0004,120]
[401291738,1768108281372,-634.84,0.0004,120]
[401291739,1768108281388,-380.95,0.0004,120]
[401291740,1768108281402,-428.41,0.0004,120]
[401291741,1768108281418,-253.0,0.0004,30]
[401291742,1768108281435,-1999.0,0.0004,120]
[401291743,1768108281451,-150.0,0.0004,120]
[401291744,1768108281465,-1019.0,0.0004,30]
[401291745,1768108281482,-1000.0,0.0004,14]
[401291746,1768108281497,-2500.0,0.000401,30]
[401291747,1768108281512,-508.0,0.00040123,18]
[401291748,1768108281527,-1000.0,0.00040124,14]
[401291749,1768108281542,-1513.51,0.000402,14]
[401291750,1768108281557,-1513.51,0.000402,14]
[401291751,1768108281572,-1000.0,0.00040274,14]
[401291752,1768108281586,-1342.19,0.00040375,120]
[401291753,1768108281602,-500.0,0.00040398,14]
[401291754,1768108281616,-150.0,0.00040402,2]
[401291755,1768108281632,-150.0,0.00040402,2]
[401291756,1768108281646,-150.0,0.00040402,2]
[401291757,1768108281660,-150.0,0.00040402,2]
[401291758,1768108281674,-150.0,0.00040402,2]
[401291759,1768108281689,-150.0,0.00040402,2]
[401291760,1768108281703,-150.0,0.00040402,2]
[401291761,1768108281718,-150.0,0.00040402,2]
[401291762,1768108281734,-150.0,0.00040402,2]
[401291763,1768108281749,-150.0,0.00040402,2]
[401291764,1768108281764,-150.0,0.00040402,2]
[401291765,1768108281778,-254.082181,0.00040424,120]
[401291766,1768108281793,-107414.50170775,0.000405,3]
[401291767,1768108281808,-2005.63206937,0.000405,120]
[401291768,1768108281823,-267.65647378,0.000405,120]
[401291769,1768108281837,-151.2,0.0004052,120]
[401291770,1768108281852,-152.28,0.00040542,120]
[401291771,1768108281868,-1000.0,0.00040548,14]
[401291772,1768108281883,-1513.51,0.000406,14]
[401291773,1768108281897,-151.0,0.000406,120]
[401291774,1768108281913,-151.0,0.000406,120]
[401291775,1768108281926,-10000.0,0.0004062,7]
[401291776,1768108281941,-151.2,0.0004062,120]
[401291777,1768108281956,-152.28,0.00040642,120]
[401291778,1768108281969,-508.0,0.00040685,18]
[401291779,1768108281984,-6554.0,0.000407,117]
[401291780,1768108281999,-299802.02585142,0.000407,27]
[401291781,1768108282014,-151.2,0.0004072,120]
[401291782,1768108282029,-1355.9,0.00040742,6]
[401291783,1768108282042,-152.28,0.00040742,120]
[401291784,1768108282285,-247.7670527,0.00040767,120]
[401291785,1768108282296,-177.62026115,0.000408,60]
[401291786,1768108282306,-300.110549,0.00040804,102]
[401291787,1768108282316,-736.29637837,0.00040805,2]
[401291788,1768108282327,-151.2,0.0004082,120]
[401291789,1768108282337,-500.0,0.00040821,120]
[401291790,1768108282348,-500.0,0.00040821,120]
[401291791,1768108282358,-500.0,0.00040821,120]
[401291792,1768108282367,-500.0,0.00040821,120]
[401291793,1768108282377,-500.0,0.00040821,120]
[401291794,1768108282386,-500.0,0.00040821,120]
[401291795,1768108282396,-185.38011991,0.00040821,120]
[401291796,1768108282406,-1000.0,0.00040822,14]
[401291797,1768108282415,-152.28,0.00040842,120]
[401291798,1768108282425,-188.56900456,0.000409,120]
[401291799,1768108282435,-151.2,0.0004092,120]
[401291800,1768108282445,-205.0,0.0004093,30]
[401291801,1768108282455,-152.28,0.00040942,120]
[401291802,1768108282465,-7578.54029557,0.00040998,2]
[401291803,1768108282474,-984.32518924,0.00041,2]
[401291804,1768108282484,-33357.65463678,0.00041,7]
[401291805,1768108282494,-150.01591961,0.00041,3]
[401291806,1768108282506,-162.38835131,0.00041,3]
[401291807,1768108282515,-3746.04,0.00041,14]
[401291808,1768108282526,-5105.17,0.00041,14]
[401291809,1768108282536,-1070.63470883,0.00041,30]
[401291810,1768108282547,-203.40995697,0.00041,120]
[401291811,1768108282557,-10000.0,0.00041,30]
[401291812,1768108282565,-200000.0,0.00041,30]
[401291813,1768108282575,-950.0247144,0.00041,120]
[401291814,1768108282584,-150.0,0.00041,120]
[401291815,1768108282593,-14386.5290935,0.00041,30]
[401291816,1768108282602,-542.11068837,0.00041,30]
[401291817,1768108282611,-533.0,0.00041,30]
[401291818,1768108282621,-264.24537488,0.00041,120]
[401291819,1768108282629,-299.91676945,0.00041,120]
[401291820,1768108282639,-25000.0,0.00041,3]
[401291821,1768108282648,-339.0,0.00041,120]
[401291822,1768108282657,-1133.44413822,0.00041,30]
[401291823,1768108282667,-253.0,0.00041,34]
[401291824,1768108282677,-150.0,0.00041,120]
[401291825,1768108282689,-1019.0,0.00041,30]
[401291826,1768108282699,-151.2,0.0004102,120]
[401291827,1768108282709,-152.28,0.00041042,120]
[401291828,1768108282719,-614.0,0.00041056,2]
[401291829,1768108282729,-1261.08,0.00041056,2]
[401291830,1768108282742,-506.0,0.00041056,2]
[401291831,1768108282752,-914.0,0.00041056,2]
[401291832,1768108282762,-1201.0,0.00041056,2]
[401291833,1768108282772,-2437.0,0.00041056,2]
[401291834,1768108282784,-118223.46594724,0.00041059,2]
[401291835,1768108282793,-300.0,0.00041068,22]
[401291836,1768108282803,-330.48048093,0.00041095,120]
[401291837,1768108282812,-7000.0,0.00041095,5]
[401291838,1768108282822,-1999.0,0.00041095,120]
[401291839,1768108282831,-600.0,0.00041096,2]
[401291840,1768108282840,-247.76,0.00041096,120]
[401291841,1768108282849,-264.0,0.00041096,120]
[401291842,1768108282859,-1000.0,0.00041096,30]
[401291843,1768108282869,-1000.0,0.00041096,30]
[401291844,1768108282878,-1000.0,0.00041096,30]
[401291845,1768108282887,-1000.0,0.00041096,30]
[401291846,1768108282896,-1000.0,0.00041096,30]
[401291847,1768108282906,-1000.0,0.00041096,30]
[401291848,1768108282915,-1000.0,0.00041096,30]
[401291849,1768108282925,-1004.0,0.00041096,30]
[401291850,1768108282934,-1000.0,0.00041096,30]
[401291851,1768108282945,-1000.0,0.00041096,30]
[401291852,1768108282954,-1000.0,0.00041096,30]
[401291853,1768108282964,-1000.0,0.00041096,30]
[401291854,1768108282973,-1000.0,0.00041096,30]
[401291855,1768108282983,-1000.0,0.00041096,30]
[401291856,1768108282993,-1000.0,0.00041096,30]
[401291857,1768108283003,-1000.0,0.00041096,30]
[401291858,1768108283013,-1000.0,0.00041096,30]
[401291859,1768108283022,-1000.0,0.00041096,30]
[401291860,1768108283031,-1000.0,0.00041096,30]
[401291861,1768108283041,-1000.0,0.00041096,30]
[401291862,1768108283050,-1000.0,0.00041096,30]
[401291863,1768108283060,-1000.0,0.00041096,30]
[401291864,1768108283069,-1000.0,0.00041096,30]
[401291865,1768108283079,-1000.0,0.00041096,30]
[401291866,1768108283088,-1000.0,0.00041096,30]
[401291867,1768108283097,-1000.0,0.00041096,30]
[401291868,1768108283107,-1000.0,0.00041096,30]
[401291869,1768108283116,-1000.0,0.00041096,30]
[401291870,1768108283131,-1000.0,0.00041096,30]
[401291871,1768108283140,-1000.0,0.00041096,30]
[401291872,1768108283149,-1000.0,0.00041096,30]
[401291873,1768108283159,-1000.0,0.00041096,30]
[401291874,1768108283168,-1000.0,0.00041096,30]
[401291875,1768108283178,-1000.0,0.00041096,30]
[401291876,1768108283187,-1000.0,0.00041096,30]
[401291877,1768108283197,-1000.0,0.00041096,30]
[401291878,1768108283207,-1000.0,0.00041096,30]
[401291879,1768108283216,-1000.0,0.00041096,30]
[401291880,1768108283225,-1000.0,0.00041096,30]
[401291881,1768108283234,-1000.0,0.00041096,30]
[401291882,1768108283244,-1000.0,0.00041096,30]
[401291883,1768108283253,-1000.0,0.00041096,30]
[401291884,1768108283262,-1000.0,0.00041096,30]
[401291885,1768108283272,-1000.0,0.00041096,30]
[401291886,1768108283281,-1000.0,0.00041096,30]